lending/lending_fUSD_20250429
["ID","MTS","AMOUNT","RATE_DAILY","PERIOD"]
[359279910,1745891441272,-470.0,0.00027397,2]
[359279911,1745891441286,-470.0,0.00027397,2]
[359279912,1745891441298,-470.0,0.00027397,2]
[359279913,1745891441313,-470.0,0.00027397,2]
[359279914,1745891441326,-470.0,0.00027397,2]
[359279915,1745891441340,-164.78582155,0.00027397,2]
[359279916,1745891441352,-470.0,0.00027397,2]
[359279917,1745891441361,-470.0,0.00027397,2]
[359279918,1745891441370,-470.0,0.00027397,2]
[359279919,1745891441380,-470.0,0.00027397,2]
[359279920,1745891441389,-502.94691776,0.00027397,2]
[359279921,1745891441398,-470.0,0.00027397,2]
[359279922,1745891441408,-470.0,0.00027397,2]
[359279923,1745891441417,-470.0,0.00027397,2]
[359279925,1745891441426,-470.92,0.00027397,2]
[359279927,1745891441435,-470.0,0.00027397,2]
[359279929,1745891441445,-470.0,0.00027397,2]
[359279931,1745891441455,-470.0,0.00027397,2]
[359279945,1745891441756,-470.0,0.00027397,2]
[359279946,1745891441786,-560.4687338,0.00027397,2]
[359279947,1745891441804,-470.0,0.00027397,2]
[359279948,1745891441813,-470.0,0.00027397,2]
[359279949,1745891441823,-502.76743088,0.00027397,2]
[359279950,1745891441834,-470.0,0.00027397,2]
[359279951,1745891441844,-470.0,0.00027397,2]
[359279952,1745891441855,-470.0,0.00027397,2]
[359279953,1745891441864,-470.0,0.00027397,2]
[359279954,1745891441874,-695.67,0.00027397,2]
[359279955,1745891441884,-262.43404345,0.00027397,2]
[359279956,1745891441893,-470.0,0.00027397,2]
[359279957,1745891441903,-470.0,0.00027397,2]
[359279958,1745891441913,-578.67703353,0.00027397,2]
[359279959,1745891441923,-470.0,0.00027397,2]
[359279960,1745891441933,-470.0,0.00027397,2]
[359279961,1745891441942,-470.0,0.00027397,2]
[359279962,1745891441952,-191.74470304,0.00027397,2]
[359279963,1745891441961,-470.0,0.00027397,2]
[359279964,1745891441970,-470.0,0.00027397,2]
[359279965,1745891441979,-470.0,0.00027397,2]
[359279966,1745891441988,-470.0,0.00027397,2]
[359279967,1745891441998,-470.0,0.00027397,2]
[359279968,1745891442009,-561.70136249,0.00027397,2]
[359279969,1745891442018,-512.93,0.00027397,2]
[359279970,1745891442028,-470.0,0.00027397,2]
[359279971,1745891442037,-549.33,0.00027397,2]
[359279972,1745891442047,-470.0,0.00027397,2]
[359279973,1745891442056,-470.0,0.00027397,2]
[359279974,1745891442066,-470.0,0.00027397,2]
[359279975,1745891442076,-470.0,0.00027397,2]
[359279976,1745891442085,-470.0,0.00027397,2]
[359279977,1745891442095,-470.0,0.00027397,2]
[359279978,1745891442104,-470.0,0.00027397,2]
[359279979,1745891442114,-470.0,0.00027397,2]
[359279980,1745891442124,-470.0,0.00027397,2]
[359279981,1745891442133,-470.0,0.00027397,2]
[359279982,1745891442143,-470.0,0.00027397,2]
[359279983,1745891442152,-470.0,0.00027397,2]
[359279984,1745891442162,-489.74,0.00027397,2]
[359279985,1745891442171,-470.0,0.00027397,2]
[359279986,1745891442180,-470.0,0.00027397,2]
[359279987,1745891442190,-926.6,0.00027397,2]
[359279988,1745891442199,-555.77914628,0.00027397,2]
[359279989,1745891442209,-470.0,0.00027397,2]
[359279990,1745891442218,-470.0,0.00027397,2]
[359279991,1745891442227,-276.41390662,0.00027397,2]
[359279992,1745891442237,-470.0,0.00027397,2]
[359279993,1745891442246,-55510.47,0.00027397,2]
[359279994,1745891442255,-470.0,0.00027397,2]
[359279995,1745891442264,-470.0,0.00027397,2]
[359279996,1745891442273,-470.0,0.00027397,2]
[359279997,1745891442282,-470.0,0.00027397,2]
[359279998,1745891442291,-470.0,0.00027397,2]
[359279999,1745891442301,-470.0,0.00027397,2]
[359280000,1745891442310,-201.8547296,0.00027397,2]
[359280001,1745891442320,-470.0,0.00027397,2]
[359280002,1745891442329,-470.0,0.00027397,2]
[359280003,1745891442339,-217.76849887,0.00027397,2]
[359280004,1745891442348,-470.0,0.00027397,2]
[359280005,1745891442358,-470.0,0.00027397,2]
[359280006,1745891442368,-470.0,0.00027397,2]
[359280007,1745891442377,-470.0,0.00027397,2]
[359280008,1745891442387,-470.0,0.00027397,2]
[359280009,1745891442397,-470.0,0.00027397,2]
[359280010,1745891442406,-165.9935241,0.00027397,2]
[359280011,1745891442415,-1415.32,0.00027397,2]
[359280012,1745891442426,-470.0,0.00027397,2]
[359280013,1745891442436,-470.0,0.00027397,2]
[359280014,1745891442446,-470.0,0.00027397,2]
[359280015,1745891442458,-470.0,0.00027397,2]
[359280016,1745891442469,-470.0,0.00027397,2]
[359280017,1745891442478,-618.86,0.00027397,2]
[359280018,1745891442488,-470.0,0.00027397,2]
[359280019,1745891442499,-4571.21,0.00027397,2]
[359280020,1745891442510,-470.0,0.00027397,2]
[359280021,1745891442521,-470.0,0.00027397,2]
[359280022,1745891442531,-470.0,0.00027397,2]
[359280023,1745891442541,-470.0,0.00027397,2]
[359280024,1745891442550,-1013.11,0.00027397,2]
[359280025,1745891442560,-250.0,0.00027397,2]
[359280026,1745891442569,-470.0,0.00027397,2]
[359280027,1745891442579,-992.65,0.00027397,2]
[359280028,1745891442588,-586.6,0.00027397,2]
[359280029,1745891442599,-1684.71,0.00027397,2]
[359280030,1745891442609,-470.0,0.00027397,2]
[359280031,1745891442618,-470.0,0.00027397,2]
[359280032,1745891442627,-470.0,0.00027397,2]
[359280033,1745891442636,-470.0,0.00027397,2]
[359280034,1745891442645,-178.856008,0.00027397,2]
[359280035,1745891442654,-470.0,0.00027397,2]
[359280036,1745891442664,-14565.27,0.00027397,2]
[359280037,1745891442673,-470.0,0.00027397,2]
[359280038,1745891442682,-470.0,0.00027397,2]
[359280039,1745891442691,-470.0,0.00027397,2]
[359280040,1745891442701,-470.0,0.00027397,2]
[359280041,1745891442710,-500.0,0.00027397,2]
[359280042,1745891442719,-426.84903594,0.00027397,2]
[359280043,1745891442728,-724.463176,0.00027397,2]
[359280044,1745891442737,-470.0,0.00027397,2]
[359280045,1745891442747,-470.0,0.00027397,2]
[359280046,1745891442757,-470.0,0.00027397,2]
[359280047,1745891442768,-470.0,0.00027397,2]
[359280048,1745891442777,-470.0,0.00027397,2]
[359280049,1745891442786,-470.0,0.00027397,2]
[359280050,1745891442796,-470.0,0.00027397,2]
[359280051,1745891442807,-470.0,0.00027397,2]
[359280052,1745891442816,-470.0,0.00027397,2]
[359280053,1745891442825,-470.0,0.00027397,2]
[359280054,1745891442837,-470.0,0.00027397,2]
[359280055,1745891442848,-153.2241506,0.00027397,2]
[359280056,1745891442859,-470.0,0.00027397,2]
[359280057,1745891442868,-168.642671,0.00027397,2]
[359280058,1745891442881,-499.1,0.00027397,2]
[359280059,1745891442891,-150.43390338,0.00027397,2]
[359280060,1745891442901,-746.52,0.00027397,2]
[359280061,1745891442911,-470.0,0.00027397,2]
[359280062,1745891442920,-470.0,0.00027397,2]
[359280063,1745891442929,-150.0,0.00027397,2]
[359280064,1745891442939,-470.0,0.00027397,2]
[359280065,1745891442948,-184.60873339,0.00027397,2]
[359280066,1745891442957,-560.29,0.00027397,2]
[359280067,1745891442966,-150.53272387,0.00027397,2]
[359280068,1745891442976,-150.67742966,0.00027397,2]
[359280069,1745891442985,-166.675125,0.00027397,2]
[359280070,1745891442994,-470.0,0.00027397,2]
[359280071,1745891443003,-504.68,0.00027397,2]
[359280072,1745891443012,-470.0,0.00027397,2]
[359280073,1745891443024,-470.0,0.00027397,2]
[359280074,1745891443034,-558.42,0.00027397,2]
[359280075,1745891443043,-470.0,0.00027397,2]
[359280077,1745891443053,-470.0,0.00027397,2]
[359280078,1745891443063,-432.57721333,0.00027397,2]
[359280079,1745891443072,-470.0,0.00027397,2]
[359280080,1745891443082,-5545.091631,0.00027397,2]
[359280081,1745891443091,-470.0,0.00027397,2]
[359280082,1745891443101,-470.0,0.00027397,2]
[359280083,1745891443110,-470.0,0.00027397,2]
[359280084,1745891443120,-470.0,0.00027397,2]
[359280085,1745891443130,-470.0,0.00027397,2]
[359280086,1745891443139,-1047.69,0.00027397,2]
[359280087,1745891443148,-300.0,0.00027397,2]
[359280088,1745891443157,-470.0,0.00027397,2]
[359280089,1745891443168,-470.0,0.00027397,2]
[359280091,1745891443178,-470.0,0.00027397,2]
[359280093,1745891443187,-470.0,0.00027397,2]
[359280094,1745891443196,-470.0,0.00027397,2]
[359280096,1745891443205,-470.0,0.00027397,2]
[359280098,1745891443214,-472.85,0.00027397,2]
[359280100,1745891443223,-470.0,0.00027397,2]
[359280102,1745891443232,-470.0,0.00027397,2]
[359280103,1745891443241,-470.0,0.00027397,2]
[359280104,1745891443250,-470.0,0.00027397,2]
[359280105,1745891443259,-1132.811667,0.00027397,2]
[359280106,1745891443268,-470.0,0.00027397,2]
[359280107,1745891443277,-470.0,0.00027397,2]
[359280108,1745891443286,-2265.36,0.00027397,2]
[359280109,1745891443295,-470.0,0.00027397,2]
[359280110,1745891443306,-470.0,0.00027397,2]
[359280111,1745891443315,-483.38,0.00027397,2]
[359280112,1745891443324,-1175.89,0.00027397,2]
[359280113,1745891443333,-470.0,0.00027397,2]
[359280114,1745891443343,-470.0,0.00027397,2]
[359280115,1745891443352,-866.46,0.00027397,2]
[359280116,1745891443361,-588.59,0.00027397,2]
[359280117,1745891443371,-470.0,0.00027397,2]
[359280118,1745891443381,-470.0,0.00027397,2]
[359280119,1745891443391,-470.0,0.00027397,2]
[359280120,1745891443400,-470.0,0.00027397,2]
[359280121,1745891443411,-699.58,0.00027397,2]
[359280122,1745891443421,-470.0,0.00027397,2]
[359280123,1745891443430,-470.0,0.00027397,2]
[359280124,1745891443441,-470.0,0.00027397,2]
[359280125,1745891443450,-470.0,0.00027397,2]
[359280126,1745891443460,-470.0,0.00027397,2]
[359280127,1745891443470,-500.0,0.00027397,2]
[359280128,1745891443480,-470.0,0.00027397,2]
[359280129,1745891443489,-540.83,0.00027397,2]
[359280130,1745891443499,-679.4,0.00027397,2]
[359280131,1745891443508,-470.0,0.00027397,2]
[359280132,1745891443518,-470.0,0.00027397,2]
[359280133,1745891443531,-470.0,0.00027397,2]
[359280134,1745891443540,-470.0,0.00027397,2]
[359280135,1745891443551,-477.45,0.00027397,2]
[359280136,1745891443560,-470.0,0.00027397,2]
[359280137,1745891443569,-220.46845857,0.00027397,2]
[359280139,1745891443579,-150.0,0.00027397,2]
[359280140,1745891443588,-470.0,0.00027397,2]
[359280142,1745891443599,-470.0,0.00027397,2]
[359280143,1745891443608,-150.0,0.00027397,2]
[359280144,1745891443617,-470.0,0.00027397,2]
[359280145,1745891443626,-327.46891508,0.00027397,2]
[359280146,1745891443636,-520.07,0.00027397,2]
[359280147,1745891443645,-866.58,0.00027397,2]
[359280148,1745891443654,-500.0,0.00027397,2]
[359280149,1745891443663,-742.91,0.00027397,2]
[359280150,1745891443672,-470.0,0.00027397,2]
[359280151,1745891443682,-470.0,0.00027397,2]
[359280152,1745891443691,-470.0,0.00027397,2]
[359280153,1745891443701,-470.0,0.00027397,2]
[359280154,1745891443710,-470.0,0.00027397,2]
[359280155,1745891443719,-470.0,0.00027397,2]
[359280156,1745891443730,-416.96613667,0.00027397,2]
[359280157,1745891443739,-470.0,0.00027397,2]
[359280158,1745891443749,-470.0,0.00027397,2]
[359280159,1745891443760,-470.0,0.00027397,2]
[359280160,1745891443769,-470.0,0.00027397,2]
[359280161,1745891443779,-470.0,0.00027397,2]
[359280162,1745891443788,-470.0,0.00027397,2]
[359280163,1745891443799,-470.0,0.00027397,2]
[359280164,1745891443810,-470.0,0.00027397,2]
[359280165,1745891443820,-470.0,0.00027397,2]
[359280166,1745891443830,-470.0,0.00027397,2]
[359280167,1745891443842,-335.80389357,0.00027397,2]
[359280168,1745891443852,-470.0,0.00027397,2]
[359280169,1745891443862,-470.0,0.00027397,2]
[359280170,1745891443871,-673.27,0.00027397,2]
[359280171,1745891443881,-470.0,0.00027397,2]
[359280172,1745891443891,-470.0,0.00027397,2]
[359280173,1745891443900,-1093.29,0.00027397,2]
[359280174,1745891443909,-377.04721362,0.00027397,2]
[359280175,1745891443919,-259.83471333,0.00027397,2]
[359280176,1745891443929,-470.0,0.00027397,2]
[359280177,1745891443939,-488.64,0.00027397,2]
[359280178,1745891443949,-470.0,0.00027397,2]
[359280179,1745891443958,-470.0,0.00027397,2]
[359280180,1745891443968,-941.22,0.00027397,2]
[359280182,1745891443977,-188.47373225,0.00027397,2]
[359280183,1745891443987,-522.04,0.00027397,2]
[359280184,1745891443996,-470.0,0.00027397,2]
[359280185,1745891444006,-470.0,0.00027397,2]
[359280186,1745891444016,-470.0,0.00027397,2]
[359280187,1745891444026,-470.0,0.00027397,2]
[359280188,1745891444035,-470.0,0.00027397,2]
[359280189,1745891444045,-529.28,0.00027397,2]
[359280190,1745891444056,-524.21737651,0.00027397,2]
[359280191,1745891444066,-470.0,0.00027397,2]
[359280192,1745891444077,-470.0,0.00027397,2]
[359280194,1745891444087,-1099.06,0.00027397,2]
[359280195,1745891444097,-172.62186861,0.00027397,2]
[359280196,1745891444107,-470.0,0.00027397,2]
[359280197,1745891444116,-1006.54,0.00027397,2]
[359280198,1745891444126,-780.67,0.00027397,2]
[359280199,1745891444136,-470.0,0.00027397,2]
[359280200,1745891444145,-470.0,0.00027397,2]
[359280201,1745891444155,-470.0,0.00027397,2]
[359280202,1745891444164,-470.0,0.00027397,2]
[359280203,1745891444174,-470.0,0.00027397,2]
[359280204,1745891444183,-520.49540716,0.00027397,2]
[359280205,1745891444193,-503.03,0.00027397,2]
[359280206,1745891444203,-470.0,0.00027397,2]
[359280207,1745891444212,-470.0,0.00027397,2]
[359280209,1745891444222,-470.0,0.00027397,2]
[359280211,1745891444231,-470.0,0.00027397,2]
[359280212,1745891444240,-763.46,0.00027397,2]
[359280213,1745891444249,-658.47,0.00027397,2]
[359280214,1745891444258,-470.0,0.00027397,2]
[359280216,1745891444268,-470.0,0.00027397,2]
[359280218,1745891444277,-470.0,0.00027397,2]
[359280220,1745891444287,-470.0,0.00027397,2]
[359280222,1745891444296,-500.0,0.00027397,2]
[359280224,1745891444307,-470.0,0.00027397,2]
[359280226,1745891444317,-470.0,0.00027397,2]
[359280228,1745891444327,-470.0,0.00027397,2]
[359280230,1745891444336,-470.0,0.00027397,2]
[359280231,1745891444345,-500.0,0.00027397,2]
[359280232,1745891444354,-470.0,0.00027397,2]
[359280233,1745891444364,-509.6,0.00027397,2]
[359280234,1745891444373,-150.0,0.00027397,2]
[359280235,1745891444383,-470.0,0.00027397,2]
[359280236,1745891444392,-470.0,0.00027397,2]
[359280237,1745891444401,-470.0,0.00027397,2]
[359280239,1745891444411,-2398.53,0.00027397,2]
[359280240,1745891444420,-1318.81,0.00027397,2]
[359280241,1745891444430,-470.0,0.00027397,2]
[359280242,1745891444440,-153.12221943,0.00027397,2]
[359280243,1745891444449,-574.52,0.00027397,2]
[359280244,1745891444458,-470.0,0.00027397,2]
[359280245,1745891444467,-153.78349864,0.00027397,2]
[359280246,1745891444477,-151.57529689,0.00027397,2]
[359280247,1745891444486,-470.0,0.00027397,2]
[359280248,1745891444495,-1126.5,0.00027397,2]
[359280249,1745891444504,-561.78,0.00027397,2]
[359280250,1745891444514,-470.0,0.00027397,2]
[359280251,1745891444523,-687.67,0.00027397,2]
[359280252,1745891444533,-541.16,0.00027397,2]
[359280253,1745891444542,-470.0,0.00027397,2]
[359280254,1745891444552,-1991.96,0.00027397,2]
[359280255,1745891444561,-470.0,0.00027397,2]
[359280256,1745891444571,-470.0,0.00027397,2]
[359280257,1745891444581,-470.0,0.00027397,2]
[359280258,1745891444591,-470.0,0.00027397,2]
[359280259,1745891444600,-470.0,0.00027397,2]
[359280260,1745891444610,-515.09,0.00027397,2]
[359280261,1745891444619,-470.0,0.00027397,2]
[359280262,1745891444629,-470.0,0.00027397,2]
[359280263,1745891444639,-470.0,0.00027397,2]
[359280264,1745891444649,-470.0,0.00027397,2]
[359280265,1745891444659,-470.0,0.00027397,2]
[359280266,1745891444669,-470.0,0.00027397,2]
[359280267,1745891444679,-516.66241904,0.00027397,2]
[359280268,1745891444689,-470.0,0.00027397,2]
[359280269,1745891444699,-470.0,0.00027397,2]
[359280270,1745891444708,-470.0,0.00027397,2]
[359280271,1745891444717,-470.0,0.00027397,2]
[359280272,1745891444727,-939.33,0.00027397,2]
[359280273,1745891444890,-498.44,0.00027397,2]
[359280274,1745891444906,-470.0,0.00027397,2]
[359280275,1745891444915,-530.34,0.00027397,2]
[359280276,1745891444925,-470.0,0.00027397,2]
[359280277,1745891444935,-470.0,0.00027397,2]
[359280278,1745891444945,-9495.93,0.00027397,2]
[359280279,1745891444955,-470.0,0.00027397,2]
[359280280,1745891444964,-470.0,0.00027397,2]
[359280281,1745891444974,-160.0,0.00027397,2]
[359280282,1745891444983,-470.0,0.00027397,2]
[359280283,1745891444994,-470.0,0.00027397,2]
[359280284,1745891445003,-470.0,0.00027397,2]
[359280285,1745891445013,-470.0,0.00027397,2]
[359280286,1745891445023,-470.0,0.00027397,2]
[359280287,1745891445033,-499.51,0.00027397,2]
[359280288,1745891445043,-698.61,0.00027397,2]
[359280289,1745891445053,-470.0,0.00027397,2]
[359280290,1745891445063,-470.0,0.00027397,2]
[359280291,1745891445073,-6840.16,0.00027397,2]
[359280292,1745891445083,-470.0,0.00027397,2]
[359280293,1745891445094,-470.0,0.00027397,2]
[359280294,1745891445103,-470.0,0.00027397,2]
[359280295,1745891445113,-470.0,0.00027397,2]
[359280296,1745891445122,-1529.65,0.00027397,2]
[359280297,1745891445132,-470.0,0.00027397,2]
[359280298,1745891445142,-470.0,0.00027397,2]
[359280299,1745891445151,-470.0,0.00027397,2]
[359280300,1745891445160,-534.45,0.00027397,2]
[359280301,1745891445170,-584.82699918,0.00027397,2]
[359280302,1745891445180,-462.5866286,0.00027397,2]
[359280303,1745891445190,-470.0,0.00027397,2]
[359280304,1745891445200,-470.0,0.00027397,2]
[359280305,1745891445210,-470.0,0.00027397,2]
[359280306,1745891445220,-470.0,0.00027397,2]
[359280307,1745891445230,-479.71139973,0.00027397,2]
[359280308,1745891445240,-768.5,0.00027397,2]
[359280309,1745891445250,-470.0,0.00027397,2]
[359280310,1745891445259,-523.02,0.00027397,2]
[359280311,1745891445268,-482.45429963,0.00027397,2]
[359280312,1745891445278,-470.0,0.00027397,2]
[359280313,1745891445288,-470.0,0.00027397,2]
[359280314,1745891445297,-470.0,0.00027397,2]
[359280315,1745891445308,-470.0,0.00027397,2]
[359280316,1745891445317,-190.30703476,0.00027397,2]
[359280317,1745891445327,-470.0,0.00027397,2]
[359280318,1745891445336,-470.0,0.00027397,2]
[359280319,1745891445346,-470.0,0.00027397,2]
[359280320,1745891445355,-470.0,0.00027397,2]
[359280321,1745891445365,-705.97,0.00027397,2]
[359280322,1745891445375,-470.0,0.00027397,2]
[359280323,1745891445385,-470.0,0.00027397,2]
[359280324,1745891445394,-470.0,0.00027397,2]
[359280325,1745891445404,-470.0,0.00027397,2]
[359280326,1745891445414,-625.13,0.00027397,2]
[359280327,1745891445424,-470.0,0.00027397,2]
[359280328,1745891445434,-470.0,0.00027397,2]
[359280329,1745891445443,-470.0,0.00027397,2]
[359280330,1745891445453,-554.64,0.00027397,2]
[359280331,1745891445463,-472.94573643,0.00027397,2]
[359280332,1745891445472,-470.0,0.00027397,2]
[359280333,1745891445482,-543.62125327,0.00027397,2]
[359280334,1745891445491,-505.95367253,0.00027397,2]
[359280335,1745891445501,-470.0,0.00027397,2]
[359280336,1745891445510,-150.0,0.00027397,2]
[359280337,1745891445520,-861.92,0.00027397,2]
[359280338,1745891445530,-500.0,0.00027424,2]
[359280339,1745891445539,-150.0,0.00027424,2]
[359280340,1745891445549,-506.60150482,0.00027424,2]
[359280341,1745891445560,-152.27843675,0.00027424,2]
[359280342,1745891445569,-500.0,0.00027424,2]
[359280343,1745891445578,-500.0,0.00027424,2]
[359280344,1745891445586,-150.0,0.00027424,2]
[359280345,1745891445595,-500.0,0.00027452,2]
[359280346,1745891445604,-287.22588687,0.00027452,2]
[359280347,1745891445614,-520.18518017,0.00027452,2]
[359280348,1745891445624,-241.36451384,0.00027452,2]
[359280349,1745891445633,-150.0,0.00027452,2]
[359280350,1745891445643,-500.0,0.00027479,2]
[359280351,1745891445653,-150.0,0.00027479,2]
[359280352,1745891445662,-500.0,0.00027507,2]
[359280353,1745891445672,-200.59528374,0.00027507,2]
[359280354,1745891445681,-500.0,0.00027534,2]
[359280355,1745891445691,-3595.20961907,0.0002754,2]
[359280356,1745891445700,-5714.3562124,0.0002754,2]
[359280357,1745891445709,-6573.43843983,0.00027555,7]
[359280358,1745891445719,-158.72823625,0.00027561,2]
[359280359,1745891445728,-267.41376139,0.00027561,2]
[359280360,1745891445737,-216.88658049,0.0002757,2]
[359280361,1745891445747,-158.72823624,0.00027571,2]
[359280362,1745891445757,-35236.9526087,0.00027651,2]
[359280363,1745891445767,-105710.857826,0.0002766,2]
[359280364,1745891445776,-2924.09617888,0.0002766,2]
[359280365,1745891445786,-176184.763043,0.00027661,2]
[359280366,1745891445796,-5848.19235776,0.00027661,2]
[359280367,1745891445806,-277.17718286,0.00027661,2]
[359280368,1745891445816,-795.0,0.00027669,2]
[359280369,1745891445825,-470.0,0.00027669,2]
[359280370,1745891445835,-1129.56,0.00027669,2]
[359280371,1745891445846,-470.0,0.00027669,2]
[359280372,1745891445856,-905.59,0.00027669,2]
[359280373,1745891445866,-477.97,0.00027669,2]
[359280374,1745891445876,-470.0,0.00027669,2]
[359280375,1745891445885,-849.57,0.00027669,2]
[359280376,1745891445895,-470.0,0.00027669,2]
[359280377,1745891445904,-576.52,0.00027669,2]
[359280378,1745891445914,-470.0,0.0002767,2]
[359280379,1745891445924,-470.0,0.0002767,2]
[359280380,1745891445935,-502.90272209,0.0002767,2]
[359280381,1745891445944,-470.0,0.0002767,2]
[359280382,1745891445954,-470.0,0.0002767,2]
[359280383,1745891445963,-470.0,0.0002767,2]
[359280384,1745891445973,-628.36,0.0002767,2]
[359280385,1745891445982,-470.0,0.0002767,2]
[359280386,1745891445993,-495.09,0.0002767,2]
[359280387,1745891446002,-470.0,0.0002767,2]
[359280388,1745891446012,-470.0,0.0002767,2]
[359280389,1745891446022,-502.37309275,0.0002767,2]
[359280390,1745891446031,-470.0,0.0002767,2]
[359280391,1745891446041,-609.86,0.0002767,2]
[359280392,1745891446051,-754.55,0.0002767,2]
[359280393,1745891446061,-872.05,0.0002767,2]
[359280394,1745891446071,-470.0,0.0002767,2]
[359280395,1745891446081,-470.0,0.0002767,2]
[359280396,1745891446091,-470.0,0.0002767,2]
[359280397,1745891446101,-470.0,0.0002767,2]
[359280398,1745891446111,-470.0,0.0002767,2]
[359280399,1745891446122,-470.0,0.0002767,2]
[359280400,1745891446131,-470.0,0.0002767,2]
[359280401,1745891446142,-1290.26,0.0002767,2]
[359280402,1745891446151,-587.15,0.0002767,2]
[359280403,1745891446161,-470.0,0.0002767,2]
[359280404,1745891446171,-532.45,0.0002767,2]
[359280405,1745891446181,-470.0,0.0002767,2]
[359280406,1745891446190,-155.19375521,0.0002767,2]
[359280407,1745891446200,-470.0,0.0002767,2]
[359280408,1745891446210,-645.07,0.0002767,2]
[359280409,1745891446219,-641.65,0.0002767,2]
[359280410,1745891446229,-470.0,0.0002767,2]
[359280411,1745891446238,-470.0,0.0002767,2]
[359280412,1745891446248,-608.47,0.0002767,2]
[359280413,1745891446258,-470.0,0.0002767,2]
[359280414,1745891446268,-470.0,0.0002767,2]
[359280415,1745891446277,-645.34,0.0002767,2]
[359280416,1745891446287,-700.47,0.0002767,2]
[359280417,1745891446297,-481.52,0.0002767,2]
[359280418,1745891446308,-538.62,0.0002767,2]
[359280419,1745891446318,-470.0,0.0002767,2]
[359280420,1745891446328,-599.91,0.0002767,2]
[359280421,1745891446338,-506.91,0.0002767,2]
[359280422,1745891446348,-470.0,0.0002767,2]
[359280423,1745891446357,-470.0,0.0002767,2]
[359280424,1745891446367,-470.0,0.0002767,2]
[359280425,1745891446376,-736.35,0.0002767,2]
[359280426,1745891446385,-470.0,0.0002767,2]
[359280427,1745891446395,-470.0,0.0002767,2]
[359280428,1745891446404,-470.0,0.0002767,2]
[359280429,1745891446413,-470.0,0.0002767,2]
[359280430,1745891446421,-556.09885972,0.0002767,2]
[359280431,1745891446429,-787.86,0.0002767,2]
[359280432,1745891446436,-470.0,0.0002767,2]
[359280433,1745891446445,-504.81,0.0002767,2]
[359280434,1745891446453,-1073.71,0.0002767,2]
[359280435,1745891446461,-534.24,0.0002767,2]
[359280436,1745891446469,-470.0,0.0002767,2]
[359280437,1745891446478,-470.0,0.0002767,2]
[359280438,1745891446488,-470.0,0.0002767,2]
[359280439,1745891446497,-470.0,0.0002767,2]
[359280440,1745891446507,-876.11,0.0002767,2]
[359280441,1745891446517,-704.63,0.0002767,2]
[359280442,1745891446526,-470.0,0.0002767,2]
[359280443,1745891446536,-491.93,0.0002767,2]
[359280444,1745891446545,-470.0,0.0002767,2]
[359280445,1745891446555,-470.0,0.0002767,2]
[359280446,1745891446565,-546.4,0.0002767,2]
[359280447,1745891446574,-470.0,0.0002767,2]
[359280448,1745891446586,-470.0,0.0002767,2]